bitfinex/quotes_SOLUSD_20260222
["timestamp","ask_amount","ask_price","bid_price","bid_amount"]
[1771802220047,12.52122578,83.059,83.034,0.49833799]
[1771802220365,3.12459849,83.07,83.034,0.49833799]
[1771802220559,0.4815622,83.09,83.048,12.04122916]
[1771802220762,3.60616069,83.09,83.052,0.49833799]
[1771802220960,3.12459849,83.12,83.06,0.49833799]
[1771802220961,3.12459849,83.1,83.06,0.49833799]
[1771802221152,0.4815622,83.099,83.062,0.49833799]
[1771802221555,3.12459849,83.09,83.062,0.49833799]
[1771802221854,3.12459849,83.08,83.062,0.49833799]
[1771802222052,3.12459849,83.09,83.062,0.49833799]
[1771802222861,3.12459849,83.1,83.064,0.49833799]
[1771802223564,3.12459849,83.1,83.072,0.49833799]
[1771802224571,3.12459849,83.1,83.074,0.49833799]
[1771802225688,0.4815622,83.103,83.074,0.49833799]
[1771802225869,3.12459849,83.1,83.074,0.49833799]
[1771802226783,0.4815622,83.103,83.076,0.49833799]
[1771802227072,3.12459849,83.11,83.077,0.28432314]
[1771802227253,12.03284846,83.219,83.092,0.49833799]
[1771802227254,12.51127913,83.128,83.092,0.49833799]
[1771802227453,0.4815622,83.128,83.092,0.49833799]
[1771802227653,3.32459849,83.13,83.092,0.49833799]
[1771802227850,0.2,83.13,83.103,0.49833799]
[1771802228073,0.2,83.13,83.112,0.49833799]
[1771802228572,0.4815622,83.146,83.112,0.45432849]
[1771802228756,3.12459849,83.14,83.112,0.45432849]
[1771802229080,3.12459849,83.14,83.114,0.45432849]
[1771802230171,0.47452429,83.139,83.102,0.45432849]
[1771802230366,0.47452429,83.129,83.103,12.03325993]
[1771802230690,0.47452429,83.147,83.112,0.45432849]
[1771802230973,0.2,83.15,83.122,0.45432849]
[1771802231965,0.47452429,83.149,83.114,0.45432849]
[1771802232966,0.47452429,83.148,83.115,12.03152258]
[1771802233269,0.47452429,83.148,83.115,12.48585107]
[1771802235171,0.47452429,83.146,83.115,12.48585107]
[1771802236269,0.47452429,83.146,83.115,12.03152258]
[1771802236469,0.46198723,83.129,83.09,3.12459849]
[1771802236778,0.46198723,83.129,83.091,0.47354427]
[1771802237075,0.46198723,83.129,83.096,0.28432314]
[1771802237258,0.46198723,83.129,83.103,0.47354427]
[1771802238575,0.46198723,83.127,83.103,0.47354427]
[1771802238772,0.46198723,83.119,83.093,12.03470064]
[1771802239470,0.46198723,83.119,83.089,0.28432314]
[1771802240178,0.46198723,83.117,83.088,0.47354427]
[1771802240363,0.46198723,83.117,83.081,0.47354427]
[1771802240559,0.46198723,83.099,83.067,0.47354427]
[1771802240781,0.46198723,83.089,83.067,0.47354427]
[1771802240980,0.46198723,83.107,83.082,0.47354427]
[1771802241479,0.46198723,83.105,83.075,12.03722182]
[1771802241975,0.46198723,83.105,83.076,0.47354427]
[1771802243359,0.46198723,83.112,83.082,0.47354427]
[1771802244469,0.46198723,83.112,83.08,3.11753884]
[1771802244470,0.46198723,83.112,83.083,12.03615661]
[1771802244680,0.46198723,83.112,83.084,0.47354427]
[1771802246881,0.46198723,83.112,83.086,0.47354427]
[1771802247266,0.46198723,83.121,83.088,0.47354427]
[1771802247466,0.46198723,83.121,83.093,0.47354427]
[1771802251195,0.46198723,83.121,83.095,0.47354427]
[1771802251398,0.46198723,83.149,83.11,3.11753884]
[1771802251698,0.46198723,83.148,83.112,0.47354427]
[1771802253082,0.46198723,83.148,83.121,0.47354427]
[1771802254891,0.46198723,83.146,83.111,0.47354427]
[1771802255092,3.57952607,83.13,83.104,0.47354427]
[1771802255282,0.46198723,83.129,83.104,0.47354427]
[1771802255586,0.46198723,83.129,83.106,0.14216157]
[1771802255779,0.46198723,83.129,83.107,0.14216157]
[1771802256183,0.46198723,83.129,83.108,0.14216157]
[1771802260090,0.49341472,83.127,83.099,0.47144785]
[1771802260270,0.49341472,83.127,83.1,0.47144785]
[1771802261991,0.49341472,83.125,83.09,3.11753884]
[1771802262291,0.49341472,83.125,83.082,0.47144785]
[1771802262471,0.49341472,83.119,83.089,0.14216157]
[1771802262676,0.49341472,83.119,83.089,0.47144785]
[1771802262995,0.49341472,83.119,83.081,12.03644635]
[1771802262996,0.49341472,83.119,83.087,0.28432314]
[1771802263223,0.49341472,83.119,83.089,0.28432314]
[1771802263378,0.49341472,83.117,83.09,0.47144785]
[1771802272405,0.49341472,83.115,83.09,0.47144785]
[1771802273084,0.49341472,83.099,83.043,3.69383402]
[1771802273278,0.49341472,83.099,83.042,5.36086188]
[1771802273279,0.49341472,83.089,83.051,0.47144785]
[1771802273482,0.49341472,83.098,83.061,0.47144785]
[1771802273721,42.10982241,83.116,83.044,3.69383402]
[1771802273722,0.49341472,83.109,83.086,0.14216157]
[1771802273919,0.49341472,83.109,83.085,0.14216157]
[1771802274214,0.49341472,83.109,83.07,0.47144785]
[1771802274388,0.49341472,83.109,83.071,0.47144785]
[1771802274714,3.11753884,83.11,83.073,0.47144785]
[1771802274715,0.49341472,83.107,83.073,0.47144785]
[1771802276304,0.49341472,83.107,83.075,0.47144785]
[1771802277212,0.49341472,83.089,83.024,0.47144785]
[1771802277383,12.03282554,83.106,83.061,0.47144785]
[1771802277588,3.11753884,83.1,83.065,0.47144785]
[1771802279195,42.11843703,83.099,83.065,0.47144785]
[1771802279389,0.49341472,83.098,83.065,0.47144785]
[1771802279608,0.49341472,83.079,83.055,12.0401175]
[1771802279913,0.49341472,83.069,83.004,0.47144785]
[1771802280118,0.49341472,83.049,83.011,0.47144785]
[1771802280491,0.49341472,83.049,83.015,0.47144785]
[1771802280788,0.49341472,83.059,83.024,0.14216157]
[1771802280993,0.49341472,83.059,83.025,0.47144785]
[1771802281290,0.49341472,83.057,83.025,0.47144785]
[1771802282103,3.11753884,83.05,83.019,12.04535408]
[1771802282414,0.49341472,83.049,83.019,12.04535408]
[1771802282817,0.49341472,83.049,83.02,0.28432314]
[1771802283018,0.49341472,83.049,83.02,0.75577099]
[1771802283316,0.49341472,83.049,83.025,0.28432314]
[1771802284407,0.49341472,83.049,83.025,0.75577099]
[1771802285110,0.49341472,83.049,83.026,0.47144785]
[1771802285527,0.49341472,83.049,83.025,0.75577099]
[1771802286020,0.49341472,83.049,83.026,0.47144785]
[1771802286599,12.03890652,83.065,83.035,0.47144785]
[1771802287997,0.49341472,83.078,83.045,0.47144785]
[1771802289221,0.49749772,83.076,83.046,0.4986173]
[1771802289437,0.49749772,83.088,83.05,3.11753884]
[1771802289613,0.49749772,83.089,83.053,0.28432314]
[1771802289812,0.49749772,83.079,83.03,3.11753884]
[1771802290016,0.49749772,83.079,83.031,0.4986173]
[1771802290412,3.11753884,83.08,83.031,0.4986173]
[1771802290413,0.49749772,83.059,83.031,0.4986173]
[1771802290729,0.49749772,83.059,83.023,0.4986173]
[1771802291524,0.49749772,83.059,83.024,12.04470996]
[1771802291716,0.49749772,83.059,83.025,0.4986173]
[1771802291921,12.03889157,83.065,83.033,0.4986173]
[1771802292226,12.53638929,83.065,83.033,0.4986173]
[1771802293622,12.53638929,83.065,83.035,0.4986173]
[1771802295927,0.49850746,83.073,83.038,0.14216157]
[1771802296131,3.6160463,83.08,83.043,0.46679094]
[1771802296523,0.49850746,83.079,83.043,0.46679094]
[1771802297514,0.49850746,83.077,83.045,0.46679094]
[1771802299930,12.03717078,83.076,83.045,0.46679094]
[1771802300134,12.03717078,83.076,83.04,3.12144095]
[1771802300135,0.49850746,83.069,83.041,0.28432314]
[1771802300338,0.49850746,83.069,83.041,0.75111408]
[1771802300534,0.49850746,83.069,83.042,0.46679094]
[1771802302023,0.49850746,83.069,83.044,0.46679094]
[1771802302337,12.53567824,83.076,83.044,0.46679094]
[1771802302933,0.49850746,83.075,83.044,0.46679094]
[1771802303328,0.49850746,83.073,83.044,0.46679094]
[1771802304520,0.49850746,83.069,83.044,0.46679094]
[1771802304725,0.49850746,83.069,83.044,12.50850133]
[1771802305241,0.49850746,83.049,83.006,0.46679094]
[1771802305426,0.49850746,83.028,82.999,0.46679094]
[1771802306036,0.49850746,83.028,83.002,0.28432314]
[1771802306339,0.49850746,83.028,83.002,0.46679094]
[1771802307829,0.49850746,83.027,83.002,0.46679094]
[1771802308131,3.12144095,83.02,82.995,12.04882982]
[1771802308332,0.49850746,83.019,82.995,12.04882982]
[1771802309141,0.49850746,83.019,82.996,0.46679094]
[1771802310443,0.49850746,83.019,82.983,0.28432314]
[1771802310837,0.49850746,83.019,82.986,0.46679094]
[1771802312245,12.5416912,83.035,82.995,0.46679094]
[1771802312449,12.04318374,83.035,83.001,0.46679094]
[1771802314338,12.04318374,83.035,83.0,3.12144095]
[1771802314339,0.49850746,83.036,83.003,0.46679094]
[1771802316337,12.04311434,83.035,83.005,0.46679094]
[1771802316943,12.5416218,83.035,83.005,0.46679094]
[1771802318458,0.46787065,83.034,83.005,0.46679094]
[1771802320042,0.46787065,83.034,83.007,0.47800626]
[1771802321842,3.12144095,83.06,83.011,0.47800626]
[1771802322969,3.12144095,83.06,83.021,0.47800626]
[1771802323965,0.43722525,83.057,83.023,0.47800626]
[1771802328158,0.43722525,83.069,83.031,0.47800626]
[1771802329143,0.43722525,83.067,83.033,0.47800626]
[1771802330363,0.43722525,83.059,83.024,0.47800626]
[1771802334952,0.43722525,83.049,83.025,12.04456489]
[1771802335258,0.43722525,83.049,83.014,0.47800626]
[1771802336969,0.43722525,83.047,83.016,0.47800626]
[1771802338478,0.43722525,83.047,83.018,0.47800626]
[1771802338681,12.4780797,83.051,83.018,0.47800626]
[1771802340160,0.43722525,83.05,83.018,0.47800626]
[1771802340476,0.43722525,83.053,83.021,0.47800626]
[1771802341460,0.43722525,83.053,83.022,12.04500012]
[1771802341665,0.43722525,83.053,83.023,0.47800626]
[1771802343980,0.43722525,83.053,83.025,0.47800626]
[1771802346364,0.43722525,83.053,83.027,0.47800626]
[1771802350179,0.43722525,83.049,83.013,0.45364292]
[1771802356381,0.43722525,83.047,83.015,0.49528551]
[1771802359370,0.43722525,83.047,83.017,0.49528551]
[1771802362387,0.43722525,83.047,83.019,0.49528551]
[1771802363093,12.04151915,83.046,83.019,0.49528551]
[1771802363296,0.43722525,83.039,83.004,0.49528551]
[1771802363471,0.43722525,83.039,83.006,0.49528551]
[1771802364403,0.43722525,83.037,83.008,0.49528551]
[1771802367396,12.04296931,83.036,83.008,0.49528551]
[1771802367590,0.43722525,83.035,83.008,0.49528551]
[1771802370393,3.12377125,83.03,83.002,0.49528551]
[1771802370703,0.43722525,83.019,82.991,0.49528551]
[1771802372495,0.43722525,83.019,82.97,0.1]
[1771802372496,0.33722525,82.997,82.97,0.1]
[1771802372686,0.33722525,82.989,82.961,0.49528551]
[1771802375095,0.23722525,82.997,82.963,0.49528551]
[1771802375477,3.12377125,83.0,82.963,0.49528551]
[1771802375676,0.23722525,82.999,82.963,0.49528551]
[1771802376086,0.23722525,82.989,82.96,0.1]
[1771802376400,3.12377125,82.98,82.96,0.1]
[1771802376587,0.23722525,82.981,82.96,0.1]
[1771802376986,0.23722525,82.981,82.96,0.59528551]
[1771802378181,0.23722525,82.979,82.96,0.1]
[1771802378782,0.23722525,82.979,82.96,0.566303]
[1771802378984,0.23722525,82.999,82.96,0.566303]
[1771802379575,3.12377125,82.99,82.96,0.566303]
[1771802379999,12.04978973,82.989,82.962,0.466303]
[1771802381596,0.23722525,82.99,82.962,0.466303]
[1771802381797,0.23722525,82.998,82.962,0.466303]
[1771802382587,12.04862826,82.997,82.962,0.466303]
[1771802382792,3.12377125,82.99,82.962,0.466303]
[1771802382994,0.23722525,82.989,82.962,0.466303]
[1771802384803,0.23722525,82.979,82.96,0.1]
[1771802385394,0.23722525,82.979,82.96,0.566303]
[1771802387493,6.2475425,82.97,82.858,0.5]
[1771802387791,6.2475425,82.97,82.797,6.29479897]
[1771802387792,32.01820158,82.969,82.87,3.12377125]
[1771802387995,3.12377125,82.93,82.891,0.5]
[1771802388388,12.05850788,82.929,82.891,0.5]
[1771802388907,12.05850788,82.929,82.893,0.5]
[1771802389289,12.05850788,82.929,82.892,12.06389036]
[1771802389290,12.05560042,82.949,82.911,0.5]
[1771802389685,60.25920089,82.975,82.911,0.5]
[1771802389686,3.12377125,82.96,82.911,0.5]
[1771802390007,30.13232434,82.968,82.921,0.5]
[1771802390189,3.12377125,82.96,82.921,0.5]
[1771802390390,3.12377125,82.95,82.921,0.5]
[1771802391211,3.12377125,82.94,82.916,12.06029817]
[1771802391398,3.12377125,82.94,82.913,0.5]
[1771802391904,3.12377125,82.93,82.901,0.5]
[1771802392694,12.05850788,82.929,82.901,0.5]
[1771802392894,12.0569086,82.94,82.891,0.5]
[1771802393315,15.18067985,82.94,82.891,0.5]
[1771802393493,15.18067985,82.94,82.901,0.5]
[1771802393910,3.12377125,82.93,82.901,0.5]
[1771802394815,12.05850788,82.929,82.901,0.5]
[1771802395118,3.12377125,82.92,82.901,0.5]
[1771802396109,33.26604277,82.94,82.901,0.5]
[1771802396502,12.05705397,82.939,82.901,0.5]
[1771802398117,12.05516443,82.952,82.902,0.5]
[1771802398353,3.12377125,82.95,82.911,0.5]
[1771802400011,12.05560042,82.949,82.913,0.5]
[1771802400413,30.13363141,82.964,82.913,0.5]
[1771802400601,3.12377125,82.95,82.913,0.5]
[1771802401126,3.12377125,82.96,82.913,0.5]
[1771802401422,3.12377125,82.93,82.913,0.5]
[1771802401595,3.12377125,82.92,82.913,0.5]
[1771802401912,3.12377125,82.93,82.913,0.5]
[1771802402114,3.12377125,82.93,82.915,0.5]
[1771802403114,0.45842155,82.962,82.916,0.466303]
[1771802403308,3.12377125,82.95,82.916,0.466303]
[1771802403498,3.12377125,82.94,82.916,0.466303]
[1771802404313,3.12377125,82.94,82.918,0.466303]
[1771802409119,3.12377125,82.94,82.92,0.48807108]
[1771802410631,3.12377125,82.95,82.922,0.48807108]
[1771802410812,12.05560042,82.949,82.922,0.48807108]
[1771802411018,0.4564455,82.939,82.914,0.48807108]
[1771802411326,0.4564455,82.939,82.915,12.06054393]
[1771802411522,0.4564455,82.939,82.915,12.54861501]
[1771802411929,0.4564455,82.939,82.916,0.48807108]
[1771802412118,3.12377125,82.94,82.916,0.48807108]
[1771802412319,0.4564455,82.949,82.916,0.48807108]
[1771802412623,12.05560042,82.949,82.918,0.48807108]
[1771802414026,3.12377125,82.94,82.918,0.48807108]
[1771802415429,0.4564455,82.929,82.899,0.48807108]
[1771802415731,0.49198726,82.909,82.874,0.48807108]
[1771802416322,3.12377125,82.91,82.874,0.48807108]
[1771802416538,3.12377125,82.91,82.876,0.46396016]
[1771802419137,12.55253119,82.915,82.878,0.46396016]
[1771802419431,3.12377125,82.91,82.878,0.46396016]
[1771802420918,12.06054393,82.915,82.878,0.46396016]
[1771802421320,15.68581046,82.92,82.88,0.46396016]
[1771802421633,0.49198726,82.919,82.88,0.46396016]
[1771802422014,3.13400651,82.91,82.87,0.56396016]
[1771802422219,0.49198726,82.879,82.84,3.13400651]
[1771802422738,0.49198726,82.879,82.84,45.38412722]
[1771802422917,0.49198726,82.879,82.841,0.28432314]
[1771802423112,0.49198726,82.879,82.84,45.38412722]
[1771802423317,0.49198726,82.889,82.84,45.38412722]
[1771802423530,0.49198726,82.889,82.841,0.14216157]
[1771802423919,0.49198726,82.889,82.841,0.28432314]
[1771802424127,0.49198726,82.889,82.846,0.46396016]
[1771802424322,0.49198726,82.888,82.85,0.46396016]
[1771802426220,0.49198726,82.879,82.851,12.06986035]
[1771802427038,3.13400651,82.87,82.846,12.53448907]
[1771802427345,0.49198726,82.869,82.844,12.07086866]
[1771802427641,42.22616332,82.887,82.845,0.46396016]
[1771802427816,12.06461809,82.887,82.851,0.46396016]
[1771802428437,12.06461809,82.887,82.853,0.46396016]
[1771802428641,3.13400651,82.89,82.853,0.46396016]
[1771802429136,3.13400651,82.88,82.853,0.46396016]
[1771802429341,42.22514446,82.889,82.831,0.46396016]
[1771802429516,3.13400651,82.87,82.831,0.46396016]
[1771802429716,0.4719729,82.859,82.831,0.46396016]
[1771802430542,0.4719729,82.859,82.83,12.17287444]
[1771802430543,15.20259253,82.86,82.833,0.46396016]
[1771802430845,3.13400651,82.87,82.833,0.46396016]
[1771802431039,12.06723865,82.869,82.833,0.46396016]
[1771802432521,0.4719729,82.868,82.835,0.46396016]
[1771802433334,0.4719729,82.859,82.835,0.46396016]
[1771802433546,0.3719729,82.849,82.761,0.5]
[1771802433845,0.3719729,82.849,82.72,48.35545242]
[1771802433846,0.49198726,82.789,82.691,48.37282324]
[1771802434042,0.49198726,82.789,82.672,102.743954]
[1771802434043,0.49198726,82.799,82.682,60.47265426]
[1771802434346,3.13400651,82.8,82.74,3.23400651]
[1771802434347,3.13400651,82.78,82.74,3.23400651]
[1771802434521,12.08035854,82.779,82.741,12.08590662]
[1771802434723,3.62599377,82.78,82.741,12.08590662]
[1771802434943,0.49198726,82.798,82.741,42.30067318]
[1771802435128,3.13400651,82.78,82.741,41.30067318]
[1771802435335,0.49198726,82.769,82.741,11.08590662]
[1771802435534,3.13400651,82.78,82.741,41.30067318]
[1771802436133,3.13400651,82.78,82.742,0.46396016]
[1771802436341,0.49198726,82.787,82.742,0.46396016]
[1771802436535,3.13400651,82.79,82.753,0.46396016]
[1771802436846,3.13400651,82.8,82.761,0.46396016]
[1771802437029,3.62599377,82.8,82.761,0.46396016]
[1771802437229,0.49198726,82.8,82.762,0.28432314]
[1771802437540,3.13400651,82.8,82.765,0.46396016]
[1771802437925,0.49198726,82.819,82.781,0.46396016]
[1771802438531,3.13400651,82.82,82.781,0.46396016]
[1771802438737,12.5531646,82.819,82.783,0.49531835]
[1771802438924,0.47864064,82.819,82.783,0.49531835]
[1771802439131,12.5531646,82.819,82.783,0.49531835]
[1771802439333,0.47864064,82.819,82.783,0.49531835]
[1771802439531,8.414682,82.82,82.783,0.49531835]
[1771802439726,0.47864064,82.819,82.783,0.49531835]
[1771802439928,0.47864064,82.819,82.74,0.1]
[1771802439929,8.414682,82.79,82.751,0.49531835]
[1771802440330,0.47864064,82.799,82.751,0.49531835]
[1771802440647,0.47864064,82.799,82.752,42.29505026]
[1771802440945,0.47864064,82.799,82.756,0.49531835]
[1771802441443,8.414682,82.78,82.756,0.49531835]
[1771802441648,0.47864064,82.779,82.747,0.49531835]
[1771802441950,8.414682,82.77,82.747,0.49531835]
[1771802442441,8.414682,82.77,82.741,12.08590662]
[1771802442442,12.07758641,82.798,82.751,0.49531835]
[1771802442935,0.47864064,82.797,82.753,0.49531835]
[1771802443729,0.47864064,82.797,82.761,0.49531835]
[1771802446033,0.47864064,82.795,82.761,0.49531835]
[1771802446234,0.47864064,82.789,82.761,0.49531835]
[1771802446440,0.47864064,82.789,82.762,12.08283995]
[1771802448142,0.47864064,82.789,82.763,0.49531835]
[1771802448445,8.414682,82.78,82.74,0.1]
[1771802448645,8.414682,82.78,82.589,26.76775492]
[1771802448646,0.47864064,82.742,82.67,8.91000035]
[1771802448838,0.47864064,82.729,82.7,8.414682]
[1771802449443,8.414682,82.76,82.72,8.414682]
[1771802449838,8.414682,82.77,82.721,0.49531835]
[1771802450042,8.414682,82.76,82.721,0.49531835]
[1771802450240,12.08181807,82.769,82.73,8.414682]
[1771802450435,12.08181807,82.769,82.731,0.49531835]
[1771802451249,0.47864064,82.768,82.731,0.49531835]
[1771802452834,0.47864064,82.768,82.732,12.08722138]
[1771802454960,0.47864064,82.766,82.732,12.08722138]
[1771802455160,12.08211001,82.767,82.733,0.49531835]
[1771802455367,0.47864064,82.766,82.73,8.414682]
[1771802455541,0.47864064,82.739,82.7,8.414682]
[1771802455869,0.47864064,82.739,82.701,0.49531835]
[1771802456057,0.47864064,82.766,82.72,8.414682]
[1771802456261,0.47864064,82.759,82.72,8.414682]
[1771802457338,0.47864064,82.759,82.711,0.49531835]
[1771802457339,0.47864064,82.749,82.711,0.49531835]
[1771802457546,0.47864064,82.749,82.72,8.414682]
[1771802458043,0.47864064,82.749,82.716,12.08953583]
[1771802458944,0.47864064,82.749,82.72,8.414682]
[1771802459349,0.47864064,82.749,82.718,12.08926714]
[1771802460375,0.47864064,82.747,82.717,0.49531835]
[1771802460569,0.47864064,82.747,82.72,8.414682]
[1771802461068,0.47864064,82.747,82.718,12.08926714]
[1771802461466,12.08517632,82.746,82.718,12.08926714]
[1771802461774,0.47864064,82.745,82.718,12.08926714]
[1771802462444,0.47864064,82.745,82.654,0.5]
[1771802462648,8.414682,82.72,82.67,8.414682]
[1771802462851,8.414682,82.72,82.671,0.5]
[1771802463053,8.414682,82.7,82.66,8.414682]
[1771802463259,8.414682,82.69,82.661,0.5]
[1771802463455,12.08692919,82.734,82.681,0.5]
[1771802463660,12.08692919,82.734,82.691,0.5]
[1771802463864,12.08692919,82.734,82.7,8.914682]
[1771802464567,8.414682,82.73,82.691,0.5]
[1771802465180,8.414682,82.72,82.681,0.5]
[1771802465467,8.414682,82.72,82.673,0.5]
[1771802465468,12.089121,82.719,82.673,0.5]
[1771802465774,8.293812,82.71,82.673,0.5]
[1771802465953,42.3119235,82.719,82.68,8.414682]
[1771802466154,42.3119235,82.719,82.68,8.914682]
[1771802467175,12.089121,82.719,82.681,0.5]
[1771802467349,8.414682,82.74,82.7,8.414682]
[1771802467654,8.414682,82.74,82.701,12.09175221]
[1771802468055,8.414682,82.74,82.701,12.59175221]
[1771802468260,8.414682,82.74,82.702,0.5]
[1771802469568,8.414682,82.74,82.704,0.5]
[1771802469569,12.08619876,82.739,82.704,0.5]
[1771802471474,12.08523012,82.746,82.706,0.5]
[1771802471650,12.08523012,82.746,82.711,0.5]
[1771802472260,8.414682,82.75,82.711,0.5]
[1771802472466,12.08372544,82.756,82.711,0.5]
[1771802473076,8.414682,82.76,82.721,0.5]
[1771802473254,30.20418082,82.77,82.721,0.5]
[1771802473458,12.08327795,82.759,82.723,0.5]
[1771802473851,12.08327795,82.759,82.703,0.5]
[1771802474052,8.414682,82.74,82.703,0.5]
[1771802474257,8.414682,82.75,82.71,8.414682]
[1771802474462,8.414682,82.75,82.711,0.5]
[1771802475173,42.29147282,82.759,82.701,0.5]
[1771802475358,8.414682,82.74,82.701,0.5]
[1771802475557,12.08619876,82.739,82.703,0.5]
[1771802477677,12.08619876,82.739,82.702,12.091606]
[1771802477678,12.08619876,82.739,82.705,0.5]
[1771802480182,8.414682,82.76,82.711,0.5]
[1771802480370,8.414682,82.75,82.711,0.5]
[1771802482082,12.08473818,82.749,82.713,0.5]
[1771802482782,8.414682,82.76,82.721,0.5]
[1771802483385,3.14564751,82.76,82.721,0.5]
[1771802483879,3.14564751,82.76,82.723,0.5]
[1771802485378,3.69383402,82.787,82.723,0.5]
[1771802485594,3.14564751,82.76,82.723,0.5]
[1771802485888,12.08100123,82.775,82.725,0.5]
[1771802486089,60.37438606,82.817,82.731,0.5]
[1771802486279,3.14564751,82.8,82.751,0.5]
[1771802486779,3.14564751,82.81,82.761,0.5]
[1771802486967,12.07496136,82.816,82.761,0.5]
[1771802486968,3.14564751,82.8,82.761,0.5]
[1771802487366,8.41916936,82.78,82.761,0.5]
[1771802487685,8.41916936,82.77,82.734,0.5]
[1771802487871,8.41916936,82.75,82.725,0.5]
[1771802488071,8.41916936,82.75,82.726,12.08809805]
[1771802488403,8.41916936,82.77,82.727,0.5]
[1771802488771,8.41916936,82.78,82.727,0.5]
[1771802489083,8.41916936,82.77,82.727,0.5]
[1771802489281,8.41916936,82.78,82.727,0.5]
[1771802490390,12.08035854,82.779,82.731,0.5]
[1771802492688,12.08035854,82.779,82.733,0.5]
[1771802493671,42.2812549,82.779,82.733,0.5]
[1771802495391,42.2812549,82.779,82.73,8.41916936]
[1771802495392,42.2812549,82.779,82.734,12.08692919]
[1771802495692,42.2812549,82.779,82.735,0.5]
[1771802497473,42.2812549,82.779,82.736,12.08663701]
[1771802497790,8.41916936,82.77,82.737,0.5]
[1771802498288,42.2812549,82.779,82.737,0.5]
[1771802498790,12.08035854,82.779,82.737,0.5]
[1771802498993,12.07961468,82.785,82.741,0.5]
[1771802499668,12.07961468,82.785,82.743,0.5]
[1771802500071,12.07889937,82.789,82.743,0.5]
[1771802501678,12.07889937,82.789,82.745,0.5]
[1771802506405,12.07889937,82.789,82.747,0.5]
[1771802507210,30.18919166,82.812,82.747,0.5]
[1771802507379,8.41916936,82.8,82.751,0.5]
[1771802508100,12.07466975,82.818,82.771,0.5]
[1771802508296,12.07598207,82.809,82.773,0.5]
[1771802509194,60.34568202,82.856,82.781,0.5]
[1771802509501,3.14070846,82.83,82.781,0.5]
[1771802509700,3.14070846,82.83,82.78,3.14070846]
[1771802509701,3.14070846,82.84,82.791,0.5]
[1771802510697,42.25063073,82.839,82.793,0.5]
[1771802511077,3.14070846,82.83,82.793,0.5]
[1771802511401,3.14070846,82.81,82.782,0.5]
[1771802511596,3.14070846,82.8,82.761,0.5]
[1771802512999,12.07744054,82.799,82.763,0.5]
[1771802514001,8.41848571,82.79,82.763,0.5]
[1771802514187,12.07744054,82.799,82.763,0.5]
[1771802515400,12.07744054,82.799,82.765,0.5]
[1771802518999,12.07744054,82.799,82.766,12.08225599]
[1771802519306,12.07744054,82.799,82.767,0.5]
[1771802520885,12.07744054,82.799,82.769,0.5]
[1771802521087,12.07643508,82.806,82.769,0.5]
[1771802521510,8.41848571,82.8,82.769,0.5]
[1771802522008,8.41848571,82.79,82.72,0.5]
[1771802522411,8.41848571,82.79,82.741,0.5]
[1771802523508,12.07889937,82.789,82.743,0.5]
[1771802525616,12.07889937,82.789,82.742,12.08576055]
[1771802525617,12.07889937,82.789,82.745,0.5]
[1771802526811,12.07889937,82.789,82.747,0.5]
[1771802529412,42.27614779,82.789,82.749,0.5]
[1771802529791,8.41848571,82.77,82.74,0.5]
[1771802530308,8.41848571,82.77,82.733,0.5]
[1771802530894,12.08181807,82.769,82.733,0.5]
[1771802533013,8.41848571,82.76,82.733,0.5]
[1771802533208,12.08327795,82.759,82.732,12.0871457]
[1771802533905,12.08327795,82.759,82.732,12.5871457]
[1771802534105,12.08327795,82.759,82.733,0.5]
[1771802534304,12.08181807,82.769,82.733,0.5]
[1771802536413,12.08181807,82.769,82.734,0.5]
[1771802540610,12.08107552,82.775,82.736,0.5]
[1771802543909,12.08107552,82.775,82.73,33.3639581]
[1771802543910,12.08035854,82.779,82.738,0.5]
[1771802545722,3.14414277,82.78,82.738,0.5]
[1771802545905,3.14414277,82.78,82.74,0.5]
[1771802547513,3.14414277,82.78,82.742,0.5]
[1771802548024,12.08035854,82.779,82.742,0.5]
[1771802554131,12.08035854,82.779,82.743,12.08561449]
[1771802554335,12.08035854,82.779,82.744,0.5]
[1771802554911,3.14414277,82.77,82.744,0.5]
[1771802556518,15.22588643,82.77,82.744,0.5]
[1771802557227,15.22588643,82.77,82.722,0.5]
[1771802557228,3.14414277,82.75,82.722,0.5]
[1771802557535,3.14414277,82.75,82.644,48.39992265]
[1771802557536,3.14414277,82.73,82.682,0.5]
[1771802557718,3.14414277,82.71,82.682,0.5]
[1771802559129,3.14414277,82.71,82.684,0.5]
[1771802561028,3.14414277,82.71,82.686,0.5]
[1771802561835,3.14414277,82.72,82.686,0.5]
[1771802562036,3.14414277,82.72,82.688,0.5]